{"text_format":"1","workbook":"xlsx","n_sheets":3,"sheets":["Arkusz1","Arkusz2","Arkusz3"],"not_rendered":{"charts":0,"images":0,"macros":0,"external_links":0,"defined_names":0,"comments":0,"pivot_tables":0},"unopened":[],"bounds":{"document_bytes":16777216,"sheet_cells":100000,"rows_first":2000,"rows_last":500,"rows_between":2000,"halvings":0,"cell_chars":16384,"cell_head_chars":4096},"cells_cut":0,"cells_raw":0,"read":"whole","date_system":"1900"}

{"sheet":"Arkusz1","index":0,"n_rows":88,"n_cols":5,"rows_kept":88,"cut":false,"hidden":false,"merged":[]}
[]
[]
[]
["Instalacje elektryczne (cennik poglądowy)"]
[]
[]
["Cennik prac instalacji elektrycznych (bez materiału - przewodów, puszek, gniazd, przełaczników itp.)"]
[]
[null,null,null,"ilość","cena"]
["·  Punkt wypustowy oświetlenia wewnętrznego","szt.",40,null,{"$f":"D10*C10","v":0}]
["·  Punkt wypustowy oświetlenia zewnętrznego","szt.",50,null,0]
["·  Punkt wypustowy oświetlenia wewnętrznego x2 (żyrandol x2, rozstaw do 0,6m)","szt.",45,null,0]
["·  Punkt wypustowy oświetlenia wewnętrznego x3 (żyrandol x3, rozstaw do 0.6m)","szt.",50,null,0]
["·  Punkt wypustowy zasilaczy 1 fazowych ","szt.",35,null,0]
["·  Punkt wypustowy czujek alarmowych ","szt.",30,null,0]
["·  Punkt wypustowy klawiatury alarmu lub sygnalizator ","szt.",30,null,0]
["·  Punkt wypustowy czujników temperatury ","szt.",35,null,0]
["·  Punkt wypustowy regulatorów temperatury","szt.",35,null,0]
["·  Punkt wypustowy gniazd antenowych lub telefonicznych ","szt.",40,null,0]
["·  Punkt wypustowy gniazda 1 faz (1 puszka)","szt.",30,null,0]
["·  Punkt wypustowy gniazda 1 faz (2 puszki)","szt.",40,null,0]
["·  Punkt wypustowy gniazda 1 faz na zewnątrz","szt.",40,null,0]
["·  Punkt wypustowy łączników schodowych/krzyżowych","szt.",40,null,0]
["·  Punkt wypustowy gniazda 3 faz","szt.",40,null,0]
["·  Punkt wypustowy łączników 1 faz","szt.",30,null,0]
["·  Punkt wypustowy gniazd komputerowych ","szt.",40,null,0]
["·  Punkt wypustowy domofon ","szt.",40,null,0]
[]
[]
["Montaż kabli i puszek",null," "]
[]
["·  Montaż kabli i przewodów na ścianie 1faz ","m.b.",2,null,{"$f":"D32*C32","v":0}]
["·  Wykucie tynku pod przewód lub kabel na ścianie (tynk, cegła, gips)","m.b.",3,null,0]
["·  Wykucie tynku na ścianie pod przewód 1faz (tynk, cegła, gips)","m.b.",3,null,0]
["·  Wykucie tynku w suficie (tynk, cegła, gips)","m.b.",6,null,0]
["·  Zafugowanie i zatarcie wykutych bruzd","m.b.",9,null,0]
["·  Montaż kabli i przewodów na ścianie + wykucie tynku 3faz ","m.b.",8,null,0]
["·  Montaż kabli i przewodów + wykucie bruzd pod kabel (ceramika) ","m.b.",5,null,0]
["·  Układanie kabla antenowego lub teletechnicznego ","m.b.",3,null,0]
["·  Montaż kabli i przewodów + wykucie bruzd pod kabel (beton) ","m.b.",15,null,0]
["·  Otwór pod puszkę - beton ","szt.",20,null,0]
["·  Otwór pod puszkę - ceramika ","szt.",10,null,0]
["·  Montaż kabli i przewodów natynkowych w korytkach lub rurkach (cena od...)","m.b.",6,null,0]
[]
["Montaż tablic/rozdzielni"]
[]
["·  Montaż i podłączenie jednego modułu (szer. ok.18mm)","szt.",15,null,{"$f":"D47*C47","v":0}]
["·  Montaż i podłączenie modułu 3 faz ","szt.",40,null,0]
["·  Podłączenie w rozdzielni 3 faz do 12 modułów ","kpl.",70,null,0]
["·  Wykucie i osadzenie rozdzielni 12-24 moduły ","szt.",100,null,0]
["·  Wykucie i osadzenie rozdzielni 36-48 moduły","szt.",150,null,0]
["·  Wykucie i osadzenie rozdzielni 56 - 104 moduły","szt.",200,null,0]
[]
[]
["Montaż osprzętu (gniazda, przełączniki, lampy itp.)"]
[]
["·  Montaż gniazd, przełączników, wyłączników 1faz ","szt.",10,null,{"$f":"D57*C57","v":0}]
["·  Podłączenie gniazda 3 faz ","szt.",25,null,0]
["·  Montaż wyłączników 3 fazowych (kabel do 6mm2) ","szt.",40,null,0]
["·  Montaż wyłączników 3 fazowych (kabel do 10mm2) ","szt.",70,null,0]
["·  Montaż gniazd telefonicznych","szt.",10,null,0]
["·  Montaż gniazd TV i SAT, komputerowych ","szt.",15,null,0]
["·  Montaż opraw oświetleniowych wewnętrznych ","szt.",15,null,0]
["·  Montaż opraw oświetleniowych zewnętrznych ","szt.",30,null,0]
["·  Montaż opraw oświetleniowych ogrodowych ","szt.",30,null,0]
["·  Montaż wentylatora","szt.",40,null,0]
["·  Transformatora 230VAC/12VDC","szt.",15,null,0]
[]
[null,null,"RAZEM:",null,{"$f":"SUM(E10:E68)","v":0}]
[]
["Usuwanie awarii elektrycznych od 60,00 zł.+dojazd - 1 zł./km"]
["Wszystkie podane ceny, są cenami netto."]
["Instalacje wykonujemy z materiałów własnych lub nam powierzonych."]
["Prace niewymierne i dodatkowe mogą być rozliczane w wymiarze czasowym."]
["Ceny podane powyżej są orientacyjne, firma nie stosuje sztywnych cen (od punktu) każdego klienta traktujemy indywidualnie."]
["Ceny ustalamy w drodze negocjacji , w zależności do specyfiki prac."]
[]
["Staramy się aby ceny za nasze usługi były konkurencyjne a jakość wykonania najwyższa."]
[]
["Wykonujemy również instalacje:"]
["Domofonowe"]
["Antenowe"]
["TV dozorowej"]
["Kontroli dostępu"]
["Rejestracji czasu pracy"]
["Alarmowe"]
["Telefoniczne (wewnętrzne centralki telefoniczne)"]
["Ceny w/w instalacji ustalane indywidualnie z klientem."]

{"sheet":"Arkusz2","index":1,"n_rows":0,"n_cols":0,"rows_kept":0,"cut":false,"hidden":false,"merged":[]}

{"sheet":"Arkusz3","index":2,"n_rows":0,"n_cols":0,"rows_kept":0,"cut":false,"hidden":false,"merged":[]}